bitfinex/quotes_BTCUSD_20240828
["timestamp","ask_amount","ask_price","bid_price","bid_amount"]
[1724882896847,0.8700909,59392.0,59391.0,0.03895934]
[1724882897049,0.5333459,59392.0,59391.0,0.03895934]
[1724882897248,0.8700909,59392.0,59391.0,0.03895934]
[1724882898686,0.8700909,59392.0,59391.0,0.0288998]
[1724882899217,0.5333459,59392.0,59391.0,0.0288998]
[1724882899830,0.5333459,59392.0,59391.0,0.03895934]
[1724882900271,0.5333459,59392.0,59391.0,0.0288998]
[1724882900482,0.5333459,59392.0,59391.0,0.03895934]
[1724882901263,1.2685359,59392.0,59391.0,0.03895934]
[1724882901463,1.3468359,59392.0,59391.0,0.0288998]
[1724882901659,1.4518359,59392.0,59391.0,0.0288998]
[1724882901891,1.4518359,59392.0,59361.0,0.05048561]
[1724882901892,0.505356,59364.0,59361.0,0.05048561]
[1724882902097,0.505356,59364.0,59359.0,0.50540786]
[1724882902098,0.168458,59362.0,59359.0,0.50540786]
[1724882902296,0.077,59368.0,59359.0,0.50540786]
[1724882902297,0.336904,59364.0,59359.0,0.50540786]
[1724882902494,0.336904,59364.0,59357.0,0.250971]
[1724882902495,0.168462,59361.0,59357.0,0.250971]
[1724882902697,0.02641986,59362.0,59357.0,0.250971]
[1724882902990,0.168462,59361.0,59357.0,0.0825]
[1724882903193,0.168462,59361.0,59359.0,0.014]
[1724882903437,0.02641986,59362.0,59359.0,0.014]
[1724882903617,0.02641986,59362.0,59357.0,0.0825]
[1724882903770,0.02641986,59362.0,59361.0,0.505381]
[1724882904215,0.02641986,59362.0,59361.0,0.5151979]
[1724882904468,0.02641986,59362.0,59361.0,0.9339189]
[1724882905335,0.02641986,59362.0,59361.0,0.9329189]
[1724882905488,0.02741986,59362.0,59361.0,1.3301399]
[1724882905696,0.02741986,59362.0,59361.0,1.3531399]
[1724882905898,0.02741986,59362.0,59361.0,1.0012189]
[1724882906106,0.001,59362.0,59361.0,1.0012189]
[1724882906321,0.002,59362.0,59361.0,0.6692979]
[1724882906527,0.002,59362.0,59361.0,1.0062189]
[1724882906730,0.02642002,59363.0,59362.0,0.505372]
[1724882907123,0.02642002,59363.0,59362.0,0.51318652]
[1724882908395,0.02642002,59363.0,59362.0,0.85010152]
[1724882908615,0.02642002,59363.0,59362.0,0.84910152]
[1724882909062,0.02742002,59363.0,59362.0,0.84910152]
[1724882909504,0.02642002,59363.0,59362.0,0.93160152]
[1724882909716,0.02842002,59363.0,59362.0,0.93160152]
[1724882910968,0.02842002,59363.0,59362.0,0.59468652]
[1724882911537,0.02842002,59363.0,59362.0,0.60168652]
[1724882911538,0.02742002,59363.0,59362.0,0.60168652]
[1724882911958,0.02742002,59363.0,59362.0,0.60468652]
[1724882912206,0.02742002,59363.0,59362.0,0.59468652]
[1724882912344,0.02842002,59363.0,59362.0,0.60168652]
[1724882912544,0.02942002,59363.0,59362.0,0.61168652]
[1724882912769,0.02742002,59363.0,59362.0,0.59468652]
[1724882912969,0.02842002,59363.0,59362.0,0.60468652]
[1724882913199,0.02942002,59363.0,59362.0,0.61168652]
[1724882913415,0.02842002,59363.0,59362.0,0.93860152]
[1724882913838,0.02821737,59363.0,59362.0,0.93860152]
[1724882914176,0.02821737,59363.0,59362.0,0.60168652]
[1724882914379,0.02821737,59363.0,59362.0,0.93860152]
[1724882914582,0.02721737,59363.0,59362.0,0.93160152]
[1724882914791,0.02821737,59363.0,59362.0,0.93860152]
[1724882915190,0.02821737,59363.0,59362.0,0.93160152]
[1724882915401,0.02721737,59363.0,59362.0,0.93160152]
[1724882915607,0.02921737,59363.0,59362.0,0.94960152]
[1724882915954,0.02921737,59363.0,59362.0,1.35151652]
[1724882916161,0.02721737,59363.0,59362.0,1.36451652]
[1724882916497,0.02821737,59363.0,59362.0,1.37451652]
[1724882919459,0.02821737,59363.0,59362.0,2.60454967]
[1724882920292,0.02821737,59363.0,59362.0,2.60544947]
[1724882920831,0.02903537,59363.0,59362.0,2.24553447]
[1724882922112,0.02903537,59363.0,59362.0,2.18053447]
[1724882922758,0.02903537,59363.0,59362.0,2.51744947]
[1724882923913,0.02903537,59363.0,59362.0,2.18053447]
[1724882924739,0.02903537,59363.0,59362.0,2.18053447]
[1724882925392,0.02903537,59363.0,59362.0,0.95050132]
[1724882926029,0.02903537,59363.0,59362.0,1.01050132]
[1724882926451,0.02903537,59363.0,59362.0,1.70933132]
[1724882926874,0.02903537,59363.0,59362.0,1.37041632]
[1724882931414,0.02903537,59363.0,59362.0,2.60044947]
[1724882935672,0.02903537,59363.0,59362.0,1.90361947]
[1724882936208,0.02903537,59363.0,59362.0,2.24053447]
[1724882936753,0.02903537,59363.0,59362.0,2.57744947]
[1724882936954,0.02903537,59363.0,59362.0,2.24053447]
[1724882937153,0.02903537,59363.0,59362.0,2.57744947]
[1724882937377,0.02903537,59363.0,59362.0,1.34941632]
[1724882937690,0.02903537,59363.0,59362.0,1.34741632]
[1724882940417,0.02903537,59363.0,59362.0,1.68933132]
[1724882940618,0.02903537,59363.0,59362.0,1.37041632]
[1724882941552,0.02903537,59363.0,59362.0,1.34741632]
[1724882943275,0.02903537,59363.0,59362.0,2.57744947]
[1724882943483,0.02903537,59363.0,59362.0,2.60544947]
[1724882943799,0.02903537,59363.0,59362.0,2.97929638]
[1724882943951,0.02903537,59363.0,59362.0,2.98129638]
[1724882944544,0.02903537,59363.0,59362.0,2.9601923]
[1724882944995,0.02903537,59363.0,59362.0,2.97929608]
[1724882945197,0.02903537,59363.0,59362.0,3.02974883]
[1724882945769,0.02903537,59363.0,59362.0,2.66483383]
[1724882946019,0.02903537,59363.0,59362.0,2.09803447]
[1724882946177,0.02903537,59363.0,59362.0,1.76111947]
[1724882946377,1.01531037,59363.0,59362.0,0.02871432]
[1724882946581,1.45375141,59363.0,59362.0,0.02871432]
[1724882946781,1.89066141,59363.0,59362.0,0.0188998]
[1724882946984,0.919357,59350.0,59349.0,0.008998]
[1724882947306,0.932857,59350.0,59349.0,0.01886436]
[1724882947506,1.26984,59350.0,59349.0,0.008998]
[1724882948285,1.43839164,59350.0,59349.0,0.008998]
[1724882948493,1.87837464,59350.0,59349.0,0.014998]
[1724882948723,1.87737464,59350.0,59349.0,0.008998]
[1724882948916,1.53839164,59350.0,59349.0,0.008998]
[1724882949131,1.37084,59350.0,59349.0,0.008998]
[1724882950329,1.033857,59350.0,59349.0,0.008998]
[1724882950531,0.696874,59350.0,59349.0,0.008998]
[1724882950884,0.700874,59350.0,59349.0,0.008998]
[1724882951113,1.037857,59350.0,59349.0,0.008998]
[1724882951313,1.032857,59350.0,59349.0,0.008998]
[1724882951511,1.034857,59350.0,59349.0,0.008998]
[1724882951939,1.032857,59350.0,59349.0,0.008998]
[1724882952348,1.033857,59350.0,59349.0,0.008998]
[1724882952749,0.696874,59350.0,59349.0,0.008998]
[1724882953111,0.800259,59350.0,59349.0,0.008998]
[1724882953316,1.137242,59350.0,59349.0,0.008998]
[1724882953883,1.474225,59350.0,59349.0,0.008998]
[1724882954030,1.136242,59350.0,59349.0,0.008998]
[1724882954232,1.033857,59350.0,59349.0,0.008998]
[1724882956139,1.03365425,59350.0,59349.0,0.008998]
[1724882958245,1.37063725,59350.0,59349.0,0.008998]
[1724882958948,1.03365425,59350.0,59349.0,0.008998]
[1724882959607,1.37063725,59350.0,59349.0,0.008998]
[1724882959832,1.50970098,59350.0,59349.0,0.008998]
[1724882960036,1.37063725,59350.0,59349.0,0.008998]
[1724882961863,1.37263725,59350.0,59349.0,0.008998]
[1724882962064,1.71462025,59350.0,59349.0,0.008998]
[1724882962682,1.71362025,59350.0,59349.0,0.008998]
[1724882966203,1.71562025,59350.0,59349.0,0.008998]
[1724882966973,1.71643825,59350.0,59349.0,0.008998]
[1724882967807,1.74943825,59350.0,59349.0,0.008998]
[1724882968051,1.75143825,59350.0,59349.0,0.008998]
[1724882968229,1.91998989,59350.0,59349.0,0.008998]
[1724882968467,2.25697289,59350.0,59349.0,0.008998]
[1724882969531,2.207506,59347.0,59346.0,0.0009009]
[1724882969735,2.207506,59347.0,59337.0,0.0009009]
[1724882969736,0.82788105,59338.0,59337.0,0.0009009]
[1724882969947,1.56028505,59338.0,59337.0,0.0009009]
[1724882970151,1.66028505,59338.0,59337.0,0.0009009]
[1724882970378,2.03530514,59338.0,59337.0,0.0009009]
[1724882970708,1.99733705,59338.0,59337.0,0.0009009]
[1724882970913,1.99933705,59338.0,59337.0,0.0009009]
[1724882971116,2.03530514,59338.0,59337.0,0.0009009]
[1724882971320,1.99233705,59338.0,59337.0,0.0009009]
[1724882971516,1.760734,59338.0,59337.0,0.0009009]
[1724882971743,1.762734,59338.0,59337.0,0.0009009]
[1724882971971,1.760734,59338.0,59337.0,0.0009009]
[1724882972176,1.283682,59338.0,59337.0,0.0009009]
[1724882973992,1.279682,59338.0,59337.0,0.0009009]
[1724882974402,0.607578,59338.0,59337.0,0.0009009]
[1724882974581,0.270526,59338.0,59337.0,0.0827009]
[1724882974964,0.102,59338.0,59337.0,0.0827009]
[1724882975279,0.002,59338.0,59337.0,0.93532172]
[1724882975505,0.002,59338.0,59337.0,0.99552172]
[1724882976999,0.337002,59347.0,59340.0,0.168519]
[1724882977208,0.168509,59344.0,59340.0,0.168518]
[1724882977410,0.168509,59344.0,59341.0,0.00996693]
[1724882977614,0.168505,59346.0,59341.0,0.17848393]
[1724882977852,0.168506,59345.0,59341.0,0.168517]
[1724882978022,0.000818,59350.0,59342.0,0.00996454]
[1724882978023,0.168511,59343.0,59342.0,0.00996454]
[1724882978388,0.001,59344.0,59337.0,0.1429009]
[1724882978588,0.505578,59338.0,59337.0,0.0009009]
[1724882978913,0.84263,59338.0,59337.0,0.0009009]
[1724882979119,0.505578,59338.0,59337.0,0.0009009]
[1724882979941,0.168526,59338.0,59337.0,0.0009009]
[1724882980154,0.001,59344.0,59338.0,0.251724]
[1724882980349,0.168515,59342.0,59338.0,0.251724]
[1724882980531,0.168515,59342.0,59338.0,0.250724]
[1724882981059,0.337019,59344.0,59338.0,0.250724]
[1724882981216,0.337013,59345.0,59339.0,0.168521]
[1724882981397,0.168513,59343.0,59339.0,0.168521]
[1724882982284,0.001,59342.0,59339.0,0.168521]
[1724882982488,0.001,59342.0,59341.0,0.251717]
[1724882983069,0.001,59342.0,59341.0,0.0832]
[1724882983232,0.001,59342.0,59341.0,0.588752]
[1724882983432,0.001,59342.0,59341.0,0.925787]
[1724882984165,0.001,59342.0,59341.0,0.0832]
[1724882984361,0.000818,59346.0,59341.0,0.0832]
[1724882984563,0.337014,59345.0,59341.0,0.0832]
[1724882984733,0.168509,59344.0,59341.0,0.0832]
[1724882985140,0.001,59343.0,59341.0,0.0832]
[1724882985410,0.168509,59344.0,59341.0,0.0832]
[1724882985809,0.001,59345.0,59341.0,0.254717]
[1724882986150,0.001,59345.0,59344.0,0.168509]
[1724882986359,0.001,59345.0,59343.0,0.167509]
[1724882986968,0.001,59345.0,59342.0,0.305814]
[1724882986969,0.169506,59345.0,59342.0,0.305814]
[1724882987168,0.168511,59343.0,59342.0,0.1373]
[1724882987364,0.001,59345.0,59342.0,0.305814]
[1724882987565,0.000818,59346.0,59342.0,0.1373]
[1724882987566,0.168509,59344.0,59342.0,0.1373]
[1724882988601,0.168511,59343.0,59342.0,0.1373]
[1724882988807,0.168511,59343.0,59342.0,0.003]
[1724882988955,0.505534,59343.0,59342.0,0.003]
[1724882989960,0.842557,59343.0,59342.0,0.003]
[1724882990173,1.25758,59343.0,59342.0,0.003]
[1724882990603,1.179682,59338.0,59337.0,0.0009009]
[1724882991218,1.239982,59338.0,59337.0,0.0009009]
[1724882991622,1.180682,59338.0,59337.0,0.0049009]
[1724882992405,1.180682,59338.0,59337.0,0.0009009]
[1724882992618,1.179682,59338.0,59337.0,0.0009009]
[1724882994056,1.179682,59338.0,59337.0,0.0639009]
[1724882994057,0.168526,59338.0,59337.0,0.0639009]
[1724882994501,0.168526,59338.0,59337.0,0.2364289]
[1724882994502,0.001,59338.0,59337.0,0.2364289]
[1724882994734,0.337032,59342.0,59337.0,0.07386926]
[1724882994961,0.337032,59342.0,59337.0,0.24239626]
[1724882994962,0.168519,59341.0,59337.0,0.24239626]
[1724882995187,0.168519,59341.0,59338.0,0.0808]
[1724882995402,0.168521,59340.0,59338.0,0.0808]
[1724882995690,0.169328,59344.0,59340.0,0.168518]
[1724882995917,0.169328,59344.0,59339.0,0.00996358]
[1724882995918,0.000818,59344.0,59343.0,0.842557]
[1724882996364,0.000818,59344.0,59343.0,0.85251447]
[1724882996840,0.000818,59344.0,59343.0,0.91271447]
[1724882997090,0.000818,59344.0,59343.0,0.91171447]
[1724882997773,0.001818,59344.0,59343.0,0.91471447]
[1724882997995,0.001818,59344.0,59343.0,0.07315747]
[1724882998444,0.170327,59344.0,59343.0,0.07315747]
[1724882998682,0.001818,59344.0,59343.0,0.07315747]
[1724882999138,0.168506,59345.0,59343.0,0.07315747]
[1724882999139,0.168505,59346.0,59343.0,0.07315747]
[1724882999384,0.168506,59345.0,59343.0,0.07315747]
[1724882999835,0.168509,59344.0,59343.0,0.07315747]
[1724883000071,0.168509,59344.0,59343.0,0.07015747]
[1724883000285,0.505512,59346.0,59343.0,0.07015747]
[1724883000737,0.169312,59350.0,59344.0,0.244007]
[1724883000998,0.169312,59350.0,59344.0,0.243007]
[1724883001249,0.169312,59350.0,59345.0,0.17845293]
[1724883001723,0.001,59346.0,59345.0,0.17845293]
[1724883001942,0.168495,59349.0,59345.0,0.17845293]
[1724883002377,0.168495,59349.0,59345.0,0.00994693]
[1724883003046,0.168503,59346.0,59345.0,0.00994693]
[1724883003320,0.505509,59346.0,59345.0,0.00994693]
[1724883003804,0.505509,59346.0,59345.0,0.02194693]
[1724883004029,0.505509,59346.0,59345.0,0.00994693]
[1724883004310,0.842515,59346.0,59345.0,0.00994693]
[1724883004540,0.843515,59346.0,59345.0,0.014]
[1724883004966,0.506509,59346.0,59345.0,0.014]
[1724883005420,0.843515,59346.0,59345.0,0.02394372]
[1724883005622,0.843515,59346.0,59345.0,0.014]
[1724883005855,0.506509,59346.0,59345.0,0.014]
[1724883006314,0.506509,59346.0,59340.0,0.0811]
[1724883006315,0.168513,59343.0,59341.0,0.0008998]
[1724883006976,0.168513,59343.0,59342.0,0.00995089]
[1724883007426,0.171322,59346.0,59342.0,0.17846489]
[1724883007652,0.000818,59346.0,59344.0,0.0629]
[1724883007858,0.168506,59345.0,59344.0,0.0619]
[1724883008488,0.168506,59345.0,59344.0,0.07184015]
[1724883008708,0.50531518,59345.0,59344.0,0.07184015]
[1724883009131,0.16830318,59345.0,59344.0,0.07184015]
[1724883009356,0.50531518,59345.0,59344.0,0.07184015]
[1724883009573,0.84232718,59345.0,59344.0,0.00994015]
[1724883009777,0.000818,59346.0,59341.0,0.0008998]
[1724883009778,0.168514,59342.0,59341.0,0.0008998]
[1724883009986,0.505543,59342.0,59341.0,0.0008998]
[1724883010227,0.505543,59342.0,59341.0,0.01084712]
[1724883010444,1.257701,59342.0,59341.0,0.0008998]
[1724883010663,1.357701,59342.0,59341.0,0.0008998]
[1724883010868,1.40779219,59342.0,59341.0,0.0008998]
[1724883011086,1.358701,59342.0,59341.0,0.0148998]
[1724883011301,1.358701,59342.0,59341.0,0.0008998]
[1724883011302,1.357701,59342.0,59341.0,0.0008998]
[1724883011501,1.51609394,59342.0,59341.0,0.0008998]
[1724883011720,1.92825972,59342.0,59341.0,0.0008998]
[1724883011935,2.01430532,59342.0,59341.0,0.0008998]
[1724883012414,2.01625323,59342.0,59341.0,0.0008998]
[1724883012647,1.92112294,59342.0,59341.0,0.0008998]
[1724883012874,1.92212294,59342.0,59341.0,0.0098998]
[1724883013310,1.92212294,59342.0,59341.0,0.0008998]
[1724883013311,2.26815194,59342.0,59341.0,0.0008998]
[1724883013549,2.26815194,59342.0,59337.0,0.0009009]
[1724883013550,1.335082,59338.0,59337.0,0.0009009]
[1724883013799,2.26778905,59338.0,59337.0,0.0009009]
[1724883014007,2.36778905,59338.0,59337.0,0.0009009]
[1724883014838,2.01773705,59338.0,59337.0,0.0019009]
[1724883015875,2.18628869,59338.0,59337.0,0.0019009]
[1724883016094,2.17628869,59338.0,59337.0,0.0009009]
[1724883016295,2.00773705,59338.0,59337.0,0.0009009]
[1724883016497,2.02173705,59338.0,59337.0,0.0019009]
[1724883016753,2.02173705,59338.0,59337.0,0.0009009]
[1724883017721,2.01773705,59338.0,59337.0,0.0019009]
[1724883018063,2.15273364,59338.0,59337.0,0.0019009]
[1724883018210,2.02773705,59338.0,59337.0,0.0019009]
[1724883018411,2.12773034,59338.0,59337.0,0.0019009]
[1724883018609,2.09273227,59338.0,59337.0,0.0019009]
[1724883018810,2.10273227,59338.0,59337.0,0.0019009]
[1724883019061,2.02773705,59338.0,59337.0,0.0019009]
[1724883019264,2.12773034,59338.0,59337.0,0.0019009]
[1724883019944,2.12973034,59338.0,59337.0,0.0019009]
[1724883020561,2.02973705,59338.0,59337.0,0.0019009]
[1724883020758,2.19828869,59338.0,59337.0,0.0019009]
[1724883022550,2.27323568,59338.0,59337.0,0.0019009]
[1724883023168,2.61028768,59338.0,59337.0,0.0019009]
[1724883023404,2.68326379,59338.0,59337.0,0.0019009]
[1724883024042,2.55834069,59338.0,59337.0,0.0019009]
[1724883024249,2.65825674,59338.0,59337.0,0.0019009]
[1724883026190,1.18692,59326.0,59325.0,0.008998]
[1724883026411,2.23676305,59326.0,59325.0,0.008998]
[1724883026628,2.80672391,59326.0,59325.0,1e-06]
[1724883026844,2.80672391,59326.0,59319.0,0.0008998]
[1724883026845,1.674193,59320.0,59319.0,0.0008998]
[1724883027057,1.674193,59320.0,59303.0,0.0783]
[1724883027058,1.09560005,59312.0,59307.0,0.50540786]
[1724883027279,0.017,59310.0,59302.0,0.008998]
[1724883027529,0.017,59310.0,59274.0,0.005]
[1724883027530,0.175656,59292.0,59277.0,0.086209]
[1724883027746,1.263095,59292.0,59277.0,0.086209]
[1724883027981,1.700408,59292.0,59277.0,0.086209]
[1724883028432,1.702408,59292.0,59277.0,0.086209]
[1724883029586,1.7569285,59292.0,59277.0,0.086209]
[1724883029818,1.78126041,59292.0,59277.0,0.086209]
[1724883030042,1.78126041,59292.0,59277.0,0.009009]
[1724883030272,1.81426041,59292.0,59277.0,0.009009]
[1724883030734,2.15157341,59292.0,59291.0,0.0009008]
[1724883030976,2.32012505,59292.0,59291.0,0.0009008]
[1724883031696,2.31312505,59292.0,59291.0,0.0009008]
[1724883031924,2.32712505,59292.0,59291.0,0.0009008]
[1724883032146,2.31312505,59292.0,59291.0,0.0009008]
[1724883032658,2.32712505,59292.0,59291.0,0.0009008]
[1724883032880,1.82126041,59292.0,59291.0,0.0009008]
[1724883033801,1.76076805,59282.0,59277.0,0.009009]
[1724883034040,1.75876805,59282.0,59277.0,0.009009]
[1724883034252,1.88176805,59282.0,59277.0,0.009009]
[1724883034496,1.86076805,59282.0,59277.0,0.009009]
[1724883035602,2.03231969,59282.0,59277.0,0.009009]
[1724883035814,1.266675,59278.0,59277.0,0.009009]
[1724883036020,1.627068,59278.0,59277.0,0.009009]
[1724883036231,1.727068,59278.0,59277.0,0.009009]
[1724883036438,1.89561964,59278.0,59277.0,0.009009]
[1724883036639,1.89761964,59278.0,59277.0,0.009009]
[1724883036847,2.24501264,59278.0,59277.0,0.009009]
[1724883037062,2.28298073,59278.0,59277.0,0.009009]
[1724883038524,2.29398073,59278.0,59277.0,0.009009]
[1724883038931,2.28298073,59278.0,59277.0,0.009009]
[1724883039132,2.29698073,59278.0,59277.0,0.009009]
[1724883039560,2.29698073,59278.0,59260.0,0.0639]
[1724883039561,1.862848,59272.0,59260.0,0.0639]
[1724883039771,2.30395105,59272.0,59260.0,0.0639]
[1724883040835,1.85402405,59272.0,59271.0,0.0757]
[1724883041053,1.280994,59272.0,59271.0,0.0757]
[1724883041266,1.280994,59272.0,59271.0,0.1387]
[1724883043671,1.4097934,59272.0,59271.0,0.1387]
[1724883044029,1.280994,59272.0,59271.0,0.1387]
[1724883047917,1.704021,59272.0,59271.0,0.0004]
[1724883048120,1.739021,59272.0,59271.0,0.0004]
[1724883048471,2.076448,59272.0,59271.0,0.0004]
[1724883048881,1.90757264,59272.0,59271.0,0.0004]
[1724883049125,1.635421,59272.0,59271.0,0.0004]
[1724883049526,1.630421,59272.0,59271.0,0.0004]
[1724883049725,1.618421,59272.0,59271.0,0.0648]
[1724883049935,1.280994,59272.0,59271.0,0.0648]
[1724883050340,1.285994,59272.0,59271.0,0.0648]
[1724883050552,1.280994,59272.0,59271.0,0.0648]
[1724883050962,1.280994,59272.0,59271.0,0.1432]
[1724883051607,1.7515204,59272.0,59271.0,0.0648]
[1724883051817,1.7535204,59272.0,59271.0,0.0004]
[1724883052231,1.7515204,59272.0,59271.0,0.0004]
[1724883052442,1.285994,59272.0,59271.0,0.0004]
[1724883052821,1.287994,59272.0,59271.0,0.0004]
[1724883053024,1.625421,59272.0,59271.0,0.0004]
[1724883054018,1.63515591,59272.0,59271.0,0.0004]
[1724883054235,1.80370755,59272.0,59271.0,0.0004]
[1724883055536,1.82670755,59272.0,59271.0,0.0004]
[1724883055742,1.82670755,59272.0,59271.0,0.0013009]
[1724883056168,2.16413455,59272.0,59271.0,0.0013009]
[1724883056335,2.17413455,59272.0,59271.0,0.0013009]
[1724883056541,2.31793455,59272.0,59271.0,0.0013009]
[1724883056912,2.31793455,59272.0,59271.0,9e-07]
[1724883057151,0.005,59259.0,59254.0,0.0778]
[1724883057365,0.168762,59255.0,59254.0,0.0778]
[1724883057562,0.511311,59252.0,59251.0,0.0004]
[1724883057764,0.511311,59252.0,59234.0,0.0778]
[1724883057765,0.844095,59235.0,59234.0,0.0778]
[1724883058052,1.41733605,59235.0,59234.0,0.0778]
[1724883058228,1.75497405,59235.0,59234.0,0.0778]
[1724883058642,1.85497405,59235.0,59234.0,0.0778]
[1724883058851,1.51733605,59235.0,59234.0,0.0778]
[1724883059542,0.168819,59235.0,59234.0,0.1394]
[1724883059735,0.337574,59247.0,59231.0,0.009409]
[1724883059736,0.1,59247.0,59237.0,0.0616]
[1724883059951,0.1,59247.0,59238.0,0.0778]
[1724883059952,0.168807,59239.0,59238.0,0.0778]
[1724883060151,0.506422,59239.0,59238.0,0.0778]
[1724883060356,1.181652,59239.0,59238.0,0.0778]
[1724883060750,0.84383401,59239.0,59238.0,0.0778]
[1724883060952,0.168807,59239.0,59238.0,0.0778]
[1724883061281,0.506422,59239.0,59238.0,0.0778]
[1724883061488,0.168807,59239.0,59238.0,0.0778]
[1724883061698,0.168807,59239.0,59238.0,0.1429]
[1724883062105,0.437569,59247.0,59234.0,0.168819]
[1724883062106,0.168789,59246.0,59242.0,0.168797]
[1724883062311,0.1,59247.0,59245.0,0.138]
[1724883062513,0.1,59247.0,59246.0,0.0776]
[1724883062514,0.506353,59247.0,59246.0,0.0776]
[1724883063027,0.843922,59247.0,59246.0,0.0776]
[1724883063825,1.181491,59247.0,59246.0,0.0776]
[1724883064682,1.281491,59247.0,59246.0,0.0776]
[1724883064888,0.005,59243.0,59237.0,0.0831]
[1724883065033,0.005,59243.0,59234.0,0.0661]
[1724883065034,0.506457,59235.0,59234.0,0.0661]
[1724883065256,0.844095,59235.0,59234.0,0.0661]
[1724883065716,1.181733,59235.0,59234.0,0.0661]
[1724883066588,1.281733,59235.0,59234.0,0.0661]
[1724883067517,1.281733,59235.0,59234.0,0.0669998]
[1724883068335,1.28955659,59235.0,59234.0,0.0669998]
[1724883070076,0.95191859,59235.0,59234.0,0.0669998]
[1724883070289,0.1,59235.0,59234.0,0.1454998]
[1724883070498,0.268819,59235.0,59234.0,0.15755525]
[1724883070710,0.844095,59235.0,59234.0,0.15755525]
[1724883070922,0.944095,59235.0,59234.0,0.1454998]
[1724883073036,0.606457,59235.0,59234.0,0.1454998]
[1724883073507,0.168819,59235.0,59234.0,0.1454998]
[1724883073688,0.168815,59237.0,59234.0,0.0669998]
[1724883073922,0.268816,59236.0,59235.0,0.09294923]
[1724883074145,0.1,59236.0,59235.0,0.09294923]
[1724883074350,0.268816,59236.0,59235.0,0.09294923]
[1724883074765,0.606448,59236.0,59235.0,0.09294923]
[1724883075363,0.606448,59236.0,59235.0,0.0809]
[1724883075606,0.94408,59236.0,59235.0,0.09294923]
[1724883076031,0.94408,59236.0,59235.0,0.0809]
[1724883077477,0.268816,59236.0,59235.0,0.0809]
[1724883077655,0.606448,59236.0,59235.0,0.0809]
[1724883078105,0.268816,59236.0,59235.0,0.0809]
[1724883078317,1.281712,59236.0,59235.0,0.0809]
[1724883078525,0.94408,59236.0,59235.0,0.0809]
[1724883078729,0.94408,59236.0,59235.0,0.09294923]
[1724883078938,0.94408,59236.0,59235.0,0.0809]
[1724883079585,1.281712,59236.0,59235.0,0.0809]
[1724883079818,0.94408,59236.0,59235.0,0.0809]
[1724883080062,1.281712,59236.0,59235.0,0.0809]
[1724883081196,0.94408,59236.0,59235.0,0.0809]
[1724883082240,0.844095,59235.0,59234.0,0.0008998]
[1724883083454,1.181733,59235.0,59234.0,0.0008998]
[1724883084553,1.7768374,59235.0,59234.0,0.0008998]
[1724883084929,1.619371,59235.0,59234.0,0.0008998]
[1724883085136,1.624371,59235.0,59234.0,0.0008998]
[1724883085355,2.063009,59235.0,59234.0,0.0008998]
[1724883085571,2.10414376,59235.0,59234.0,0.0008998]
[1724883085774,2.22624024,59235.0,59234.0,0.0008998]
[1724883085976,2.137309,59235.0,59234.0,0.0008998]
[1724883086178,2.135309,59235.0,59234.0,0.0008998]
[1724883086388,2.18510548,59235.0,59234.0,0.0008998]
[1724883086596,2.135309,59235.0,59234.0,0.0008998]
[1724883087019,2.17844376,59235.0,59234.0,0.0008998]
[1724883087257,2.137309,59235.0,59234.0,0.0008998]
[1724883087495,2.135309,59235.0,59234.0,0.0008998]
[1724883088272,2.137309,59235.0,59234.0,0.0008998]
[1724883088968,1.624371,59235.0,59234.0,0.0008998]
[1724883089377,1.629371,59235.0,59234.0,0.0008998]
[1724883089815,1.711871,59235.0,59234.0,0.0008998]
[1724883090707,1.734871,59235.0,59234.0,0.0008998]
[1724883091166,1.82580224,59235.0,59234.0,0.0008998]
[1724883091372,2.16344024,59235.0,59234.0,0.0008998]
[1724883091608,2.072509,59235.0,59234.0,0.0008998]
[1724883092046,2.070509,59235.0,59234.0,0.0008998]
[1724883092549,1.972009,59235.0,59234.0,0.0008998]
[1724883092754,1.624371,59235.0,59234.0,0.0008998]
[1724883092992,0.09233899,59238.0,59236.0,0.0759]
[1724883092993,0.01764427,59238.0,59236.0,0.0759]
[1724883093170,0.000818,59239.0,59238.0,0.0759]
[1724883093394,0.000818,59239.0,59238.0,0.1415]
[1724883093607,0.169625,59239.0,59238.0,0.15355547]
[1724883094477,0.50724,59239.0,59238.0,0.15355547]
[1724883094899,0.269625,59239.0,59238.0,0.15355547]
[1724883095431,0.0606,59237.0,59200.0,0.0768]
[1724883095601,1.199412,59201.0,59200.0,0.0768]
[1724883096017,0.851707,59192.0,59178.0,0.008998]
[1724883096247,0.851707,59192.0,59178.0,0.177978]
[1724883096248,0.861707,59192.0,59178.0,0.177978]
[1724883096469,0.861707,59192.0,59178.0,0.008998]
[1724883096669,0.861707,59192.0,59191.0,0.0816]
[1724883097109,0.523824,59192.0,59191.0,0.0816]
[1724883097328,0.861707,59192.0,59191.0,0.0816]
[1724883097533,0.523824,59192.0,59191.0,0.0816]
[1724883097979,0.015,59192.0,59191.0,0.0816]
[1724883098430,0.017,59192.0,59191.0,0.0816]
[1724883098643,0.185941,59192.0,59191.0,0.1465]
[1724883098901,0.523824,59192.0,59191.0,0.1465]
[1724883099120,0.015,59192.0,59191.0,0.1465]
[1724883099999,0.183941,59192.0,59191.0,0.1465]
[1724883100203,0.521824,59192.0,59191.0,0.1465]
[1724883100618,0.523824,59192.0,59191.0,0.1465]
[1724883101871,0.861707,59192.0,59191.0,0.1415]
[1724883104480,0.523824,59192.0,59191.0,0.1415]
[1724883104913,0.52362081,59192.0,59191.0,0.1415]
[1724883105146,0.86150381,59192.0,59191.0,0.1415]
[1724883105369,0.86150381,59192.0,59191.0,0.1423998]
[1724883106482,0.52162081,59192.0,59191.0,0.1423998]
[1724883106688,0.18373781,59192.0,59191.0,0.1423998]
[1724883106895,0.18573781,59192.0,59191.0,0.1423998]
[1724883107117,0.52362081,59192.0,59191.0,0.15356204]
[1724883107350,0.86150381,59192.0,59191.0,0.1423998]
[1724883107561,1.93351656,59192.0,59191.0,0.0008998]
[1724883111190,2.37709956,59192.0,59191.0,0.0008998]
[1724883111403,2.5456512,59192.0,59191.0,0.0008998]
[1724883111907,2.2714682,59192.0,59191.0,0.0008998]
[1724883112118,2.02021656,59192.0,59191.0,0.0008998]